bitfinex/quotes_BTCUSD_20250423
["timestamp","ask_amount","ask_price","bid_price","bid_amount"]
[1745391322625,0.21192596,93527.0,93526.0,0.00100001]
[1745391322829,0.1062,93527.0,93526.0,0.00100001]
[1745391323027,0.20396,93527.0,93526.0,0.00100001]
[1745391323876,0.31226305,93527.0,93526.0,0.00100001]
[1745391324495,0.20396,93527.0,93526.0,0.00100001]
[1745391326267,0.16146,93527.0,93526.0,0.00100001]
[1745391328551,0.15446,93527.0,93526.0,0.00100001]
[1745391330827,0.15346,93527.0,93526.0,0.00100001]
[1745391332857,0.11176,93527.0,93526.0,0.00100001]
[1745391333490,0.014,93527.0,93526.0,0.00100001]
[1745391333720,0.014,93527.0,93526.0,0.60334428]
[1745391333915,0.01969107,93536.0,93534.0,0.21382598]
[1745391333916,0.009,93536.0,93534.0,0.21382598]
[1745391334478,0.00598427,93535.0,93534.0,0.21382598]
[1745391335017,0.009,93536.0,93534.0,0.21382598]
[1745391335382,0.00604985,93535.0,93533.0,0.35069141]
[1745391335988,0.00604985,93535.0,93534.0,0.21382598]
[1745391336400,0.00804985,93536.0,93534.0,0.21382598]
[1745391336787,0.002,93535.0,93533.0,0.35069141]
[1745391337097,0.005,93535.0,93533.0,0.35069141]
[1745391337479,0.002,93535.0,93533.0,0.35069141]
[1745391337682,0.01104985,93536.0,93534.0,0.21382598]
[1745391337940,0.001,93535.0,93533.0,0.35069141]
[1745391338164,0.001,93535.0,93534.0,0.21382598]
[1745391338927,0.001,93535.0,93533.0,0.35069141]
[1745391339147,0.003,93535.0,93533.0,0.35169141]
[1745391339822,0.002,93535.0,93533.0,0.001]
[1745391340460,0.01874092,93536.0,93532.0,0.22451998]
[1745391340639,0.001,93535.0,93533.0,0.35069141]
[1745391340799,0.003,93535.0,93533.0,0.35069141]
[1745391341202,0.001,93535.0,93533.0,0.35069141]
[1745391341572,0.002,93535.0,93533.0,0.35069141]
[1745391342510,0.002,93535.0,93534.0,0.21382598]
[1745391343383,0.00804985,93536.0,93534.0,0.21382598]
[1745391343550,0.001,93535.0,93534.0,0.21382598]
[1745391343751,0.003,93535.0,93534.0,0.21382598]
[1745391343958,0.00304985,93536.0,93533.0,0.35069141]
[1745391344159,0.001,93535.0,93533.0,0.35069141]
[1745391344365,0.001,93535.0,93534.0,0.21382598]
[1745391345015,0.00304985,93536.0,93534.0,0.21382598]
[1745391345220,0.002,93535.0,93534.0,0.21382598]
[1745391345494,0.003,93535.0,93534.0,0.21382598]
[1745391345704,0.003,93535.0,93533.0,0.35069141]
[1745391346379,0.002,93535.0,93533.0,0.35069141]
[1745391346605,0.00304985,93536.0,93533.0,0.35069141]
[1745391346907,0.003,93535.0,93534.0,0.001]
[1745391347183,0.003,93535.0,93533.0,0.35069141]
[1745391347384,0.001,93535.0,93533.0,0.35069141]
[1745391347745,0.002,93535.0,93533.0,0.35069141]
[1745391349335,0.002,93535.0,93533.0,0.01069141]
[1745391352198,0.00304985,93536.0,93533.0,0.01069141]
[1745391352199,0.0087408,93537.0,93533.0,0.01069141]
[1745391352782,0.0087408,93537.0,93527.0,0.01069209]
[1745391352913,0.22451248,93536.0,93530.0,0.01069175]
[1745391353297,0.22451248,93536.0,93527.0,0.11899514]
[1745391353298,0.01069129,93534.0,93529.0,0.01069187]
[1745391353477,0.01069129,93534.0,93530.0,0.01069175]
[1745391353902,0.01069129,93534.0,93527.0,0.11899514]
[1745391353903,0.2138397,93528.0,93527.0,0.34]
[1745391354094,0.2138397,93528.0,93527.0,0.341]
[1745391354321,0.2138397,93528.0,93527.0,0.34]
[1745391354694,0.2128397,93528.0,93527.0,0.34]
[1745391354894,0.2128397,93528.0,93526.0,1e-08]
[1745391355325,0.2138397,93528.0,93527.0,0.001]
[1745391355967,0.001,93528.0,93527.0,0.001]
[1745391356169,0.001,93528.0,93527.0,0.003]
[1745391357291,0.22352843,93530.0,93527.0,0.002]
[1745391357922,0.001,93528.0,93527.0,0.002]
[1745391358540,0.22352843,93530.0,93527.0,0.002]
[1745391358738,0.01069187,93529.0,93526.0,1e-08]
[1745391358883,0.01069187,93529.0,93527.0,0.001]
[1745391359094,0.01069187,93529.0,93527.0,0.002]
[1745391359521,0.2138397,93528.0,93527.0,0.002]
[1745391359960,0.01069187,93529.0,93527.0,0.001]
[1745391360416,0.01169187,93529.0,93526.0,0.00100001]
[1745391360611,0.01169187,93529.0,93527.0,0.001]
[1745391360872,0.001,93529.0,93527.0,0.001]
[1745391361003,0.00969175,93530.0,93527.0,0.001]
[1745391361224,0.001,93529.0,93527.0,0.002]
[1745391361913,0.00969175,93530.0,93527.0,0.001]
[1745391362081,0.00969175,93530.0,93526.0,0.01069222]
[1745391362482,0.21383741,93529.0,93527.0,0.001]
[1745391362686,0.00969175,93530.0,93527.0,0.001]
[1745391362890,0.01069187,93529.0,93526.0,1e-08]
[1745391363099,0.01069187,93529.0,93527.0,0.001]
[1745391363307,0.01069187,93529.0,93527.0,0.002]
[1745391364117,0.01169187,93529.0,93527.0,0.002]
[1745391364520,0.01069187,93529.0,93527.0,0.002]
[1745391364924,0.01169187,93529.0,93527.0,0.003]
[1745391366358,0.001,93529.0,93527.0,0.003]
[1745391367548,0.01069164,93531.0,93527.0,0.01369209]
[1745391367745,0.01069107,93536.0,93529.0,0.01069187]
[1745391367947,0.01069129,93534.0,93527.0,0.34]
[1745391368262,0.01069129,93534.0,93530.0,0.01069175]
[1745391368671,0.01069129,93534.0,93527.0,0.34]
[1745391368672,0.01069141,93533.0,93527.0,0.32448153]
[1745391368844,0.01069129,93534.0,93529.0,0.01069187]
[1745391369227,0.01069141,93533.0,93527.0,0.33517362]
[1745391369643,0.001,93531.0,93528.0,0.01069198]
[1745391370251,0.01069141,93533.0,93528.0,0.01069198]
[1745391370462,0.05069061,93540.0,93533.0,0.01069141]
[1745391370690,0.01069107,93536.0,93530.0,0.01069175]
[1745391370899,0.01069118,93535.0,93530.0,0.01069175]
[1745391371056,0.01069129,93534.0,93530.0,0.01069175]
[1745391371252,0.001,93531.0,93530.0,0.01069175]
[1745391372559,0.01069118,93535.0,93530.0,0.01069175]
[1745391372902,0.01169118,93535.0,93530.0,0.01169175]
[1745391373039,0.001,93531.0,93530.0,0.01169175]
[1745391373758,0.01069129,93534.0,93530.0,0.01169175]
[1745391373943,0.01069129,93534.0,93530.0,0.01069175]
[1745391374348,0.001,93531.0,93528.0,0.35069198]
[1745391375155,0.00469129,93534.0,93529.0,0.01069187]
[1745391375356,0.00469129,93534.0,93530.0,0.01069175]
[1745391375599,0.001,93531.0,93530.0,0.01069175]
[1745391375912,0.001,93531.0,93530.0,0.01169175]
[1745391376622,0.00469129,93534.0,93530.0,0.01069175]
[1745391376779,0.001,93531.0,93530.0,0.01169175]
[1745391376984,0.002,93531.0,93530.0,0.001]
[1745391377608,0.001,93531.0,93528.0,0.35069198]
[1745391378444,0.01069129,93534.0,93530.0,0.01069175]
[1745391378604,0.01169129,93534.0,93530.0,0.01069175]
[1745391378813,0.01269129,93534.0,93530.0,0.01169175]
[1745391379015,0.002,93534.0,93530.0,0.35169175]
[1745391379453,0.001,93534.0,93530.0,0.35169175]
[1745391379779,0.001,93534.0,93531.0,0.01069164]
[1745391379780,0.002,93534.0,93531.0,0.01069164]
[1745391380120,0.002,93534.0,93530.0,0.35169175]
[1745391380561,0.001,93534.0,93530.0,0.35069175]
[1745391381872,0.002,93534.0,93531.0,0.001]
[1745391382418,0.01169129,93534.0,93529.0,0.01069187]
[1745391382904,0.01269129,93534.0,93530.0,0.001]
[1745391383102,0.01169129,93534.0,93530.0,0.001]
[1745391383406,0.01169129,93534.0,93529.0,0.01069187]
[1745391383605,0.01169129,93534.0,93531.0,0.001]
[1745391383606,0.01269129,93534.0,93531.0,0.001]
[1745391384115,0.01169129,93534.0,93531.0,0.001]
[1745391384611,0.21382827,93533.0,93531.0,0.001]
[1745391384966,0.01069129,93534.0,93526.0,0.22453626]
[1745391385170,0.01069152,93532.0,93530.0,0.001]
[1745391385510,0.01269129,93534.0,93530.0,0.001]
[1745391385710,0.01169129,93534.0,93530.0,0.01169175]
[1745391385927,0.01069141,93533.0,93529.0,0.35069187]
[1745391386058,0.001,93533.0,93529.0,0.35069187]
[1745391386252,0.01169141,93533.0,93529.0,0.34]
[1745391386688,0.01169141,93533.0,93529.0,0.35069187]
[1745391386871,0.01069141,93533.0,93530.0,0.001]
[1745391387750,0.01269129,93534.0,93530.0,0.01169175]
[1745391388151,0.01169129,93534.0,93530.0,0.01069175]
[1745391388499,0.001,93533.0,93530.0,0.01069175]
[1745391389351,0.002,93533.0,93530.0,0.01069175]
[1745391389529,0.001,93533.0,93530.0,0.01069175]
[1745391389956,0.001,93533.0,93530.0,0.01169175]
[1745391390555,0.001,93533.0,93530.0,0.22552608]
[1745391390787,0.01069118,93535.0,93530.0,0.22552608]
[1745391391120,0.00569107,93536.0,93531.0,0.01069164]
[1745391391686,0.001,93533.0,93530.0,0.01169175]
[1745391392177,0.001,93535.0,93531.0,0.01069164]
[1745391392388,0.001,93535.0,93531.0,0.01169164]
[1745391392688,0.01069118,93535.0,93531.0,0.001]
[1745391393034,0.00669107,93536.0,93530.0,0.22452645]
[1745391393226,0.002,93533.0,93530.0,0.22552645]
[1745391393603,0.002,93533.0,93530.0,0.01169175]
[1745391394019,0.002,93533.0,93531.0,0.21383284]
[1745391394350,0.001,93533.0,93531.0,0.21483284]
[1745391394505,0.001,93533.0,93531.0,0.21697093]
[1745391395000,0.01069084,93538.0,93532.0,0.01069152]
[1745391395404,0.01069072,93539.0,93533.0,0.01069141]
[1745391395725,0.04,93540.0,93534.0,0.22451727]
[1745391396332,0.001,93538.0,93534.0,0.22451727]
[1745391396654,0.001,93538.0,93534.0,0.21382598]
[1745391397232,0.001,93538.0,93534.0,0.22451727]
[1745391397650,0.041,93540.0,93538.0,0.21381664]
[1745391397810,0.043,93540.0,93539.0,1.82183905]
[1745391398015,0.042,93540.0,93539.0,1.20236505]
[1745391398412,0.033,93540.0,93539.0,1.20236505]
[1745391399515,0.034,93540.0,93539.0,1.25186505]
[1745391400790,0.034,93540.0,93539.0,0.94312905]
[1745391401592,0.034,93540.0,93539.0,1.35662905]
[1745391404546,0.034,93540.0,93539.0,1.35412905]
[1745391404707,0.034,93540.0,93539.0,1.40022905]
[1745391405099,0.02587327,93540.0,93539.0,1.40122905]
[1745391405310,0.00812673,93540.0,93539.0,1.40122905]
[1745391405502,0.00712673,93540.0,93539.0,1.40022905]
[1745391405704,0.0008502,93565.0,93558.0,0.01068855]
[1745391405913,0.0008502,93565.0,93559.0,0.01068844]
[1745391406188,0.01068787,93564.0,93557.0,0.22446145]
[1745391406363,0.01068775,93565.0,93558.0,0.01068855]
[1745391406567,0.01068775,93565.0,93559.0,0.01068844]
[1745391406743,0.22529046,93567.0,93560.0,0.35068832]
[1745391406744,0.0008502,93567.0,93560.0,0.35068832]
[1745391406980,0.01158438,93567.0,93561.0,0.01068821]
[1745391407179,0.01158438,93567.0,93561.0,0.02871483]
[1745391407382,0.01158438,93567.0,93561.0,0.01802662]
[1745391407577,0.001,93565.0,93563.0,0.01068798]
[1745391407775,0.001,93565.0,93562.0,0.34]
[1745391408210,0.00089686,93567.0,93562.0,0.34]
[1745391408373,0.00389686,93567.0,93562.0,0.34]
[1745391408790,0.002,93565.0,93562.0,0.34]
[1745391409201,0.00289686,93567.0,93562.0,0.34]
[1745391409414,0.00489686,93567.0,93562.0,0.34]
[1745391409626,0.22444423,93565.0,93562.0,0.34]
[1745391410179,0.22744423,93565.0,93562.0,0.001]
[1745391410984,0.22944423,93565.0,93562.0,0.001]
[1745391412738,0.01568775,93565.0,93562.0,0.001]
[1745391413578,0.22944338,93565.0,93562.0,0.001]
[1745391413774,0.26275957,93564.0,93562.0,0.001]
[1745391413975,0.049,93564.0,93562.0,0.001]
[1745391414133,0.042,93564.0,93562.0,0.001]
[1745391414530,0.05268787,93564.0,93561.0,0.01829554]
[1745391414732,0.01068798,93563.0,93558.0,0.35068855]
[1745391414917,0.22444769,93563.0,93562.0,0.001]
[1745391415602,0.01068798,93563.0,93562.0,0.001]
[1745391416279,0.05568787,93564.0,93562.0,0.001]
[1745391416480,0.26944743,93564.0,93562.0,0.001]
[1745391416694,0.01068809,93562.0,93557.0,0.35068867]
[1745391417053,0.01068809,93562.0,93561.0,0.001]
[1745391417477,0.01068821,93561.0,93557.0,0.35810343]
[1745391417677,0.01068821,93561.0,93557.0,0.01810343]
[1745391417877,0.01068821,93561.0,93556.0,0.35068878]
[1745391418088,0.01168809,93562.0,93557.0,0.01068867]
[1745391418285,0.001,93562.0,93558.0,0.01068855]
[1745391418753,0.001,93561.0,93558.0,0.01068855]
[1745391418948,0.002,93561.0,93557.0,0.01662221]
[1745391419142,0.001,93561.0,93556.0,0.35068878]
[1745391419389,0.01168821,93561.0,93556.0,0.34]
[1745391419641,0.01068832,93560.0,93556.0,0.34]
[1745391419787,0.01168821,93561.0,93556.0,0.35636851]
[1745391420228,0.01168821,93561.0,93556.0,0.36705729]
[1745391420439,0.01068821,93561.0,93556.0,0.35636851]
[1745391420585,0.01068832,93560.0,93556.0,0.35636851]
[1745391420792,0.01068821,93561.0,93556.0,0.35636851]
[1745391420996,0.01168821,93561.0,93556.0,0.35636851]
[1745391421197,0.25947342,93557.0,93556.0,0.01636851]
[1745391421406,0.01068889,93555.0,93550.0,0.35068947]
[1745391421624,0.01068889,93555.0,93550.0,0.34]
[1745391421831,0.01068878,93556.0,93550.0,0.35068947]
[1745391422044,0.01068889,93555.0,93550.0,0.34]
[1745391422223,0.01068901,93554.0,93549.0,0.01068958]
[1745391422564,0.01068901,93554.0,93550.0,0.01068947]
[1745391422689,0.01068901,93554.0,93549.0,0.0273052]
[1745391423345,0.0457,93557.0,93551.0,0.01068935]
[1745391423545,0.01068821,93561.0,93553.0,0.35068912]
[1745391423716,0.001,93555.0,93554.0,0.01068901]
[1745391424204,0.01068798,93563.0,93556.0,0.01068878]
[1745391424399,0.01068809,93562.0,93555.0,0.01068889]
[1745391425620,0.01068832,93560.0,93555.0,0.01168889]
[1745391426391,0.01068844,93559.0,93555.0,0.001]
[1745391426924,0.01068844,93559.0,93554.0,0.01068901]
[1745391427135,0.01068832,93560.0,93555.0,0.35068889]
[1745391427523,0.001,93559.0,93555.0,0.35068889]
[1745391428149,0.01068832,93560.0,93555.0,0.01068889]
[1745391428352,0.01168832,93560.0,93555.0,0.01068889]
[1745391429244,0.001,93560.0,93556.0,0.01068878]
[1745391429443,0.001,93560.0,93557.0,0.35068867]
[1745391429643,0.01068775,93565.0,93560.0,0.01068832]
[1745391429831,0.01068787,93564.0,93559.0,0.01068844]
[1745391430031,0.01068787,93564.0,93560.0,0.01068832]
[1745391430395,0.01068775,93565.0,93560.0,0.01068832]
[1745391431134,0.01268787,93564.0,93560.0,0.01168832]
[1745391431799,0.01068787,93564.0,93560.0,0.01068832]
[1745391431995,0.01068787,93564.0,93560.0,0.01168832]
[1745391432664,0.01068787,93564.0,93560.0,0.001]
[1745391432865,0.01068798,93563.0,93560.0,0.001]
[1745391433267,0.01068798,93563.0,93559.0,0.01068844]
[1745391434026,0.002,93564.0,93560.0,0.01068832]
[1745391434220,0.001,93563.0,93560.0,0.35068832]
[1745391434456,0.002,93563.0,93561.0,0.22445249]
[1745391434665,0.002,93563.0,93562.0,0.00213743]
[1745391434894,0.003,93563.0,93562.0,3.73608748]
[1745391435101,0.001,93563.0,93562.0,2.82911905]
[1745391435271,0.001,93563.0,93562.0,2.8446599]
[1745391435819,0.001,93563.0,93562.0,2.9911999]
[1745391436029,0.0004008,93573.0,93569.0,0.06424085]
[1745391436258,0.08664292,93603.0,93573.0,0.66727771]
[1745391436457,0.0008498,93601.0,93588.0,0.21370261]
[1745391436662,0.0008498,93601.0,93588.0,2.60348623]
[1745391436993,0.0008498,93601.0,93588.0,1.79900866]
[1745391437445,0.00638284,93608.0,93603.0,0.01068341]
[1745391437578,0.01168273,93609.0,93603.0,0.01068341]
[1745391437779,0.01082309,93608.0,93603.0,0.01068341]
[1745391438232,0.00014025,93608.0,93603.0,0.35068341]
[1745391438495,0.00014025,93608.0,93604.0,0.0106833]
[1745391438755,0.01082309,93608.0,93604.0,0.0106833]
[1745391438955,0.01082309,93608.0,93603.0,0.35068341]
[1745391439874,0.22548018,93608.0,93603.0,0.01682626]
[1745391440070,0.01068307,93606.0,93603.0,0.01682626]
[1745391440272,0.01068319,93605.0,93601.0,0.01068364]
[1745391440474,0.01068307,93606.0,93603.0,0.34]
[1745391441032,0.01068307,93606.0,93603.0,0.35650505]
[1745391441264,0.01168307,93606.0,93603.0,0.35650505]
[1745391441657,0.01268307,93606.0,93603.0,0.35650505]
[1745391441859,0.002,93606.0,93603.0,0.35650505]
[1745391442590,0.22448018,93608.0,93603.0,0.35650505]
[1745391443141,0.01068307,93606.0,93603.0,0.35650505]
[1745391444337,0.001,93606.0,93603.0,0.36718846]
[1745391444449,0.002,93606.0,93605.0,0.5536638]
[1745391444674,0.002,93606.0,93605.0,0.34]
[1745391445115,0.00582309,93608.0,93606.0,0.34]
[1745391445472,0.00582309,93608.0,93604.0,0.0106833]
[1745391445675,0.01168273,93609.0,93604.0,0.0106833]
[1745391446108,0.01068284,93608.0,93603.0,0.24085675]
[1745391446328,0.01068296,93607.0,93603.0,0.01650505]
[1745391446506,0.2253376,93609.0,93605.0,0.001]
[1745391446758,0.01068284,93608.0,93605.0,0.001]
[1745391447040,0.01068284,93608.0,93603.0,0.01068341]
[1745391447248,0.01068284,93608.0,93603.0,0.01268341]
[1745391447603,0.01068284,93608.0,93602.0,0.11898658]
[1745391447945,0.01168273,93609.0,93605.0,0.002]
[1745391448851,0.01168273,93609.0,93605.0,0.01268319]
[1745391449669,0.001,93609.0,93605.0,0.01268319]
[1745391449876,0.001,93609.0,93605.0,0.01068319]
[1745391450027,0.001,93609.0,93606.0,0.01068307]
[1745391450239,0.001,93609.0,93605.0,0.01068319]
[1745391450799,0.001,93609.0,93605.0,0.01268319]
[1745391450962,0.001,93609.0,93606.0,0.01068307]
[1745391451703,0.001,93609.0,93606.0,0.22434388]
[1745391452251,0.002,93609.0,93606.0,0.22434388]
[1745391452749,0.00568261,93610.0,93605.0,0.01068319]
[1745391453083,0.00568261,93610.0,93606.0,0.001]
[1745391453532,0.00568261,93610.0,93606.0,0.01068307]
[1745391454276,0.22433206,93612.0,93607.0,0.01068296]
[1745391454410,0.01068239,93612.0,93607.0,0.01068296]
[1745391454618,0.01068239,93612.0,93608.0,0.01068284]
[1745391455305,0.01068227,93613.0,93608.0,0.01068284]
[1745391455509,0.0106825,93611.0,93607.0,0.01068296]
[1745391455748,0.01068261,93610.0,93606.0,0.01168307]
[1745391455940,0.01068261,93610.0,93606.0,0.01068307]
[1745391456144,0.01068261,93610.0,93607.0,0.001]
[1745391456853,0.01068261,93610.0,93606.0,0.01068307]
[1745391457069,0.01068261,93610.0,93606.0,0.001]
[1745391457442,0.01068261,93610.0,93605.0,0.01068319]
[1745391457818,0.01068261,93610.0,93607.0,0.001]
[1745391458982,0.01068273,93609.0,93606.0,0.001]
[1745391459196,0.01068239,93612.0,93606.0,0.01168307]
[1745391459490,0.0106825,93611.0,93605.0,0.35168319]
[1745391459693,0.01068239,93612.0,93606.0,0.01068307]
[1745391459898,0.0106825,93611.0,93605.0,0.35068319]
[1745391460103,0.0106825,93611.0,93606.0,0.001]
[1745391460293,0.0106825,93611.0,93606.0,0.01268307]
[1745391460496,0.01068239,93612.0,93606.0,0.01168307]
[1745391461030,0.0106825,93611.0,93607.0,0.35068296]
[1745391461614,0.01068227,93613.0,93608.0,0.01068284]
[1745391461820,0.01068239,93612.0,93607.0,0.35068296]
[1745391462754,0.0106825,93611.0,93606.0,0.01068307]
[1745391462879,0.01068239,93612.0,93607.0,0.01168296]
[1745391463409,0.01068227,93613.0,93608.0,0.01068284]
[1745391463862,0.01068227,93613.0,93609.0,0.01068273]
[1745391464266,0.01068216,93614.0,93609.0,0.01068273]
[1745391465515,0.01068261,93610.0,93606.0,0.35068307]
[1745391465732,0.01068261,93610.0,93606.0,0.34]
[1745391466382,0.01068261,93610.0,93606.0,0.35068307]
[1745391466514,0.01068261,93610.0,93605.0,0.35068319]
[1745391466711,0.01068261,93610.0,93606.0,0.01268307]
[1745391467215,0.01068261,93610.0,93606.0,0.01168307]
[1745391467415,0.01068261,93610.0,93606.0,0.01068307]
[1745391467619,0.01068261,93610.0,93605.0,0.35168319]
[1745391467849,0.01068261,93610.0,93605.0,0.35268319]
[1745391468156,0.22433025,93612.0,93606.0,0.01999451]
[1745391468333,0.22433025,93612.0,93607.0,0.01749451]
[1745391468775,0.01068261,93610.0,93605.0,0.35268319]
[1745391468980,0.01068239,93612.0,93606.0,0.01068307]
[1745391469183,0.01068239,93612.0,93606.0,0.01268307]
[1745391469367,0.0106825,93611.0,93606.0,0.01268307]
[1745391469768,0.0106825,93611.0,93606.0,0.01168307]
[1745391470180,0.0106825,93611.0,93606.0,0.01068307]
[1745391470401,0.0106825,93611.0,93607.0,0.01068296]
[1745391470761,0.01068239,93612.0,93608.0,0.01068284]
[1745391471161,0.21364781,93613.0,93608.0,0.01068284]
[1745391471362,0.01068227,93613.0,93609.0,0.35068273]
[1745391471578,0.01068227,93613.0,93609.0,0.34]
[1745391471801,0.01068227,93613.0,93609.0,0.35068273]
[1745391472000,0.21363166,93620.0,93612.0,0.22432981]
[1745391472221,0.01068182,93617.0,93612.0,0.10830305]
[1745391472435,0.0942,93627.0,93621.0,0.01068136]
[1745391472436,0.05848067,93627.0,93621.0,0.01068136]
[1745391472603,0.0106809,93625.0,93619.0,0.01068159]
[1745391472789,0.0106809,93625.0,93620.0,0.01068147]
[1745391473003,0.01068102,93624.0,93619.0,0.01068159]
[1745391473208,0.01068125,93622.0,93617.0,0.12923823]
[1745391473410,0.01068136,93621.0,93617.0,0.11898487]
[1745391474110,0.01068125,93622.0,93618.0,0.0106817]
[1745391474889,0.01068113,93623.0,93619.0,0.01068159]
[1745391475531,0.003,93621.0,93619.0,0.01068159]
[1745391475807,0.002,93622.0,93618.0,0.0106817]
[1745391476211,0.002,93623.0,93620.0,0.01068147]
[1745391476411,0.003,93623.0,93621.0,0.21362728]
[1745391476624,0.002,93623.0,93622.0,0.32192805]
[1745391476921,0.22427308,93636.0,93627.0,0.21361196]
[1745391477067,0.01067999,93633.0,93627.0,0.21361196]
[1745391477691,0.22427308,93636.0,93628.0,0.21361131]
[1745391477896,0.01067999,93633.0,93628.0,0.21361131]
[1745391478479,0.0106801,93632.0,93626.0,0.22429661]
[1745391478998,0.01067999,93633.0,93626.0,0.22429661]
[1745391479318,0.002,93629.0,93628.0,0.55361131]
[1745391479680,0.001,93629.0,93628.0,0.55361131]
[1745391480107,0.002,93629.0,93628.0,0.55361131]
[1745391480321,0.002,93629.0,93628.0,0.57356946]
[1745391481123,0.002,93629.0,93628.0,0.68187251]
[1745391481386,0.002,93629.0,93628.0,1.35498251]
[1745391481907,0.001,93629.0,93628.0,1.35498251]
[1745391482924,0.002,93629.0,93628.0,1.35498251]
[1745391483543,0.00571919,93640.0,93635.0,0.35067976]
[1745391483798,0.00618652,93640.0,93635.0,0.34]
[1745391484025,0.01067931,93639.0,93636.0,0.01995815]
[1745391484518,0.01067931,93639.0,93637.0,0.01995815]
[1745391484664,0.01018652,93640.0,93638.0,0.01995815]
[1745391485064,0.01218652,93640.0,93639.0,0.01995815]
[1745391485264,0.00818652,93640.0,93639.0,0.01995815]
[1745391485816,0.00618652,93640.0,93639.0,0.01995815]
[1745391486171,0.00818652,93640.0,93639.0,0.02095815]
[1745391486380,0.01318652,93640.0,93639.0,0.02095815]
[1745391486790,0.01618652,93640.0,93639.0,0.02095815]
[1745391489843,0.01618652,93640.0,93639.0,0.03615606]
[1745391491456,0.00918652,93640.0,93639.0,0.03615606]
[1745391491699,0.01986571,93640.0,93639.0,0.03615606]
[1745391499146,0.01286571,93640.0,93639.0,0.03615606]
[1745391502748,0.00218652,93640.0,93639.0,0.03615606]
[1745391503085,0.00218652,93640.0,93639.0,0.90009492]
[1745391503202,0.0004249,93644.0,93641.0,0.01067908]
[1745391503404,0.00056501,93644.0,93643.0,0.34]
[1745391503599,0.00056501,93644.0,93643.0,1.68483405]
[1745391503806,0.00056501,93644.0,93643.0,1.70479505]
[1745391504021,0.00056501,93644.0,93643.0,1.41276005]
[1745391504350,0.00056501,93644.0,93643.0,1.39279905]
[1745391505128,0.00056501,93644.0,93643.0,1.09127838]
[1745391505333,0.00056501,93644.0,93643.0,1.09427838]
[1745391505463,0.00056501,93644.0,93643.0,1.09927838]
[1745391506758,0.00083911,93649.0,93647.0,0.21356797]
[1745391506967,0.00083911,93649.0,93648.0,0.74499605]
[1745391507924,0.00083911,93649.0,93648.0,0.44830305]
[1745391508123,0.00083911,93649.0,93648.0,0.74498605]
[1745391508529,0.00083911,93649.0,93648.0,0.59748505]
[1745391508751,0.00083911,93649.0,93648.0,0.44830305]
[1745391508996,0.00083911,93649.0,93648.0,0.45030305]
[1745391509150,0.21440252,93649.0,93648.0,0.002]
[1745391510101,0.22047916,93649.0,93648.0,0.002]
[1745391510242,0.26727916,93649.0,93648.0,0.002]
[1745391510821,0.26727916,93649.0,93643.0,0.34]
[1745391510822,0.21357481,93644.0,93642.0,0.4135]
[1745391512600,0.21457481,93644.0,93642.0,0.4135]
[1745391513013,0.21457481,93644.0,93639.0,0.01519791]
[1745391513215,0.2242599,93642.0,93639.0,0.01519791]
[1745391513418,0.01067919,93640.0,93635.0,0.01067976]
[1745391513616,0.01067931,93639.0,93635.0,0.01067976]
[1745391513793,0.01067942,93638.0,93635.0,0.01526485]
[1745391514086,0.01067942,93638.0,93634.0,0.35081999]
[1745391514297,0.01067942,93638.0,93634.0,0.00014011]
[1745391514740,0.01067953,93637.0,93634.0,0.00014011]
[1745391515308,0.01067953,93637.0,93634.0,0.0172826]
[1745391515505,0.00967942,93638.0,93634.0,0.02796248]
[1745391515711,0.00967942,93638.0,93634.0,0.0172826]
[1745391516008,0.01067953,93637.0,93634.0,0.0192826]
[1745391516208,0.00967942,93638.0,93634.0,0.0192826]
[1745391516408,0.01067931,93639.0,93634.0,0.02996248]
[1745391516604,0.01067919,93640.0,93636.0,0.01067965]
[1745391516809,0.01067919,93640.0,93635.0,0.01067976]
[1745391517006,0.01067919,93640.0,93636.0,0.01067965]
[1745391518101,0.01067931,93639.0,93635.0,0.01167976]
[1745391518318,0.01067931,93639.0,93636.0,0.001]
[1745391519322,0.01067919,93640.0,93636.0,0.001]
[1745391520059,0.01067919,93640.0,93635.0,0.01067976]
[1745391520486,0.01067919,93640.0,93636.0,0.001]
[1745391520831,0.01067919,93640.0,93636.0,0.002]
[1745391521145,0.01067919,93640.0,93635.0,0.01067976]
[1745391521344,0.01067931,93639.0,93634.0,0.36596248]
[1745391521776,0.01067919,93640.0,93636.0,0.34]
[1745391522177,0.01067908,93641.0,93636.0,0.34]
[1745391522495,0.01067919,93640.0,93636.0,0.34]
[1745391523041,0.01067919,93640.0,93634.0,0.36596248]
[1745391523359,0.01067919,93640.0,93634.0,0.36796248]
[1745391523617,0.01067931,93639.0,93634.0,0.36596248]
[1745391523770,0.01067931,93639.0,93636.0,0.001]
[1745391524593,0.01067931,93639.0,93634.0,0.36896248]
[1745391524975,0.01067931,93639.0,93636.0,0.001]
[1745391525518,0.01067908,93641.0,93636.0,0.01167965]
[1745391525719,0.01067896,93642.0,93637.0,0.01067953]
[1745391525857,0.01067908,93641.0,93636.0,0.001]
[1745391526262,0.01067919,93640.0,93635.0,0.01067976]
[1745391526883,0.01067931,93639.0,93635.0,0.01067976]
[1745391528145,0.01067931,93639.0,93635.0,0.01167976]
[1745391528699,0.01067919,93640.0,93636.0,0.01067965]
[1745391529124,0.01067931,93639.0,93635.0,0.001]
[1745391529413,0.01067896,93642.0,93635.0,0.01067976]
[1745391529798,0.01067896,93642.0,93636.0,0.21359306]
[1745391530626,0.01067896,93642.0,93636.0,0.22427271]
[1745391530790,0.01067896,93642.0,93636.0,0.21359306]
[1745391531172,0.01067908,93641.0,93635.0,0.001]
[1745391531399,0.01067896,93642.0,93636.0,0.21459306]
[1745391532649,0.01067896,93642.0,93637.0,0.34]
[1745391532888,0.01067885,93643.0,93637.0,0.34]
[1745391533063,0.01067896,93642.0,93637.0,0.34]
[1745391533283,0.01067908,93641.0,93637.0,0.34]
[1745391533843,0.01067896,93642.0,93637.0,0.34]
[1745391534047,0.01067896,93642.0,93637.0,0.341]
[1745391534507,0.01067896,93642.0,93637.0,0.342]
[1745391535624,0.01067908,93641.0,93637.0,0.342]
[1745391535843,0.01067908,93641.0,93637.0,0.34]
[1745391535998,0.01067908,93641.0,93637.0,0.341]
[1745391536710,0.01067908,93641.0,93637.0,0.001]
[1745391536912,0.01067919,93640.0,93635.0,0.34]